fUSD/lending_fUSD_20250105
["ID","MTS","AMOUNT","RATE_DAILY","PERIOD"]
[347721818,1736080287985,-808.62,9.863e-05,2]
[347721819,1736080287994,-761.6,9.863e-05,2]
[347721820,1736080288004,-951.77,9.863e-05,2]
[347721821,1736080288013,-500.0,9.863e-05,2]
[347721822,1736080288022,-500.0,9.863e-05,2]
[347721823,1736080288032,-3563.41,9.863e-05,2]
[347721824,1736080288041,-644.39,9.863e-05,2]
[347721825,1736080288050,-393.22077783,9.863e-05,2]
[347721826,1736080288060,-500.0,9.863e-05,2]
[347721827,1736080288070,-500.0,9.863e-05,2]
[347721828,1736080288080,-502.21,9.863e-05,2]
[347721829,1736080288091,-843.93,9.863e-05,2]
[347721830,1736080288100,-910.58,9.863e-05,2]
[347721831,1736080288109,-500.0,9.863e-05,2]
[347721832,1736080288119,-500.0,9.863e-05,2]
[347721833,1736080288129,-1613.49,9.863e-05,2]
[347721834,1736080288139,-500.0,9.863e-05,2]
[347721835,1736080288149,-735.41,9.863e-05,2]
[347721836,1736080288159,-813.76,9.863e-05,2]
[347721837,1736080288169,-5150.86,9.863e-05,2]
[347721838,1736080288178,-3394.74,9.863e-05,2]
[347721839,1736080288188,-944.87,9.863e-05,2]
[347721840,1736080288198,-689.67,9.863e-05,2]
[347721841,1736080288207,-655.36,9.863e-05,2]
[347721842,1736080288217,-1446.73,9.863e-05,2]
[347721843,1736080288226,-720.85,9.863e-05,2]
[347721844,1736080288236,-565.47,9.863e-05,2]
[347721845,1736080288246,-1877.66,9.863e-05,2]
[347721846,1736080288255,-500.0,9.863e-05,2]
[347721847,1736080288265,-500.0,9.863e-05,2]
[347721848,1736080288275,-1021.37,9.863e-05,2]
[347721849,1736080288284,-2158.66,9.863e-05,2]
[347721850,1736080288293,-2343.82,9.863e-05,2]
[347721851,1736080288303,-541.9,9.863e-05,2]
[347721852,1736080288312,-500.0,9.863e-05,2]
[347721853,1736080288322,-470.02373679,9.863e-05,2]
[347721854,1736080288336,-443.69626321,9.863e-05,2]
[347721855,1736080288347,-1014.2,9.863e-05,2]
[347721856,1736080288356,-3941.55,9.863e-05,2]
[347721857,1736080288366,-500.0,9.863e-05,2]
[347721858,1736080288376,-1016.92,9.863e-05,2]
[347721859,1736080288385,-1848.78,9.863e-05,2]
[347721860,1736080288395,-673.74,9.863e-05,2]
[347721861,1736080288405,-500.0,9.863e-05,2]
[347721862,1736080288415,-500.0,9.863e-05,2]
[347721863,1736080288425,-500.0,9.863e-05,2]
[347721864,1736080288434,-670.64,9.863e-05,2]
[347721865,1736080288444,-500.0,9.863e-05,2]
[347721866,1736080288454,-500.0,9.863e-05,2]
[347721867,1736080288464,-532.39,9.863e-05,2]
[347721868,1736080288474,-1754.35,9.863e-05,2]
[347721869,1736080288485,-500.0,9.863e-05,2]
[347721870,1736080288495,-500.0,9.863e-05,2]
[347721871,1736080288505,-728.56,9.863e-05,2]
[347721872,1736080288515,-500.0,9.863e-05,2]
[347721873,1736080288524,-500.0,9.863e-05,2]
[347721874,1736080288534,-848.05,9.863e-05,2]
[347721875,1736080288544,-596.96,9.863e-05,2]
[347721876,1736080288554,-910.76,9.863e-05,2]
[347721877,1736080288564,-1377.71,9.863e-05,2]
[347721878,1736080288573,-500.0,9.863e-05,2]
[347721879,1736080288583,-845.81,9.863e-05,2]
[347721880,1736080288593,-500.0,9.863e-05,2]
[347721881,1736080288602,-1843.47,9.863e-05,2]
[347721882,1736080288612,-500.0,9.863e-05,2]
[347721883,1736080288622,-2557.48,9.863e-05,2]
[347721884,1736080288632,-5198.54073137,9.863e-05,2]
[347721885,1736080288651,-3069.16926863,9.863e-05,2]
[347721886,1736080288660,-500.0,9.863e-05,2]
[347721887,1736080288669,-500.0,9.863e-05,2]
[347721888,1736080288678,-4927.54,9.863e-05,2]
[347721889,1736080288686,-500.0,9.863e-05,2]
[347721890,1736080288695,-859.68,9.863e-05,2]
[347721891,1736080288705,-500.0,9.863e-05,2]
[347721892,1736080288715,-573.88,9.863e-05,2]
[347721893,1736080288724,-500.0,9.863e-05,2]
[347721894,1736080288734,-1334.48,9.863e-05,2]
[347721895,1736080288749,-1181.27,9.863e-05,2]
[347721896,1736080288760,-500.0,9.863e-05,2]
[347721897,1736080288770,-500.0,9.863e-05,2]
[347721898,1736080288780,-836.03,9.863e-05,2]
[347721899,1736080288791,-841.25,9.863e-05,2]
[347721900,1736080288801,-622.4,9.863e-05,2]
[347721901,1736080288812,-500.0,9.863e-05,2]
[347721902,1736080288824,-500.0,9.863e-05,2]
[347721903,1736080288835,-1431.27,9.863e-05,2]
[347721904,1736080288846,-500.0,9.863e-05,2]
[347721905,1736080288857,-629.29,9.863e-05,2]
[347721906,1736080288869,-500.0,9.863e-05,2]
[347721907,1736080288880,-500.0,9.863e-05,2]
[347721908,1736080288891,-500.0,9.863e-05,2]
[347721909,1736080288901,-4802.2,9.863e-05,2]
[347721910,1736080288912,-727.91,9.863e-05,2]
[347721911,1736080288924,-500.0,9.863e-05,2]
[347721912,1736080289194,-500.0,9.863e-05,2]
[347721913,1736080289205,-500.0,9.863e-05,2]
[347721914,1736080289215,-888.06,9.863e-05,2]
[347721915,1736080289225,-500.0,9.863e-05,2]
[347721916,1736080289234,-1936.68,9.863e-05,2]
[347721917,1736080289244,-828.89073148,9.863e-05,2]
[347721918,1736080289264,-2630.39926852,9.863e-05,2]
[347721919,1736080289273,-726.5,9.863e-05,2]
[347721920,1736080289282,-500.0,9.863e-05,2]
[347721921,1736080289291,-500.0,9.863e-05,2]
[347721922,1736080289300,-859.55,9.863e-05,2]
[347721923,1736080289309,-500.0,9.863e-05,2]
[347721924,1736080289319,-500.0,9.863e-05,2]
[347721925,1736080289328,-500.0,9.863e-05,2]
[347721926,1736080289337,-1155.24,9.863e-05,2]
[347721927,1736080289347,-838.92,9.863e-05,2]
[347721928,1736080289357,-714.39,9.863e-05,2]
[347721929,1736080289366,-931.02,9.863e-05,2]
[347721930,1736080289376,-667.6,9.863e-05,2]
[347721931,1736080289385,-3444.04,9.863e-05,2]
[347721932,1736080289396,-972.4,9.863e-05,2]
[347721933,1736080289407,-662.67,9.863e-05,2]
[347721934,1736080289415,-500.0,9.863e-05,2]
[347721935,1736080289424,-710.82,9.863e-05,2]
[347721936,1736080289433,-500.0,9.863e-05,2]
[347721937,1736080289442,-500.0,9.863e-05,2]
[347721938,1736080289451,-5863.8,9.863e-05,2]
[347721939,1736080289460,-580.01,9.863e-05,2]
[347721940,1736080289469,-500.0,9.863e-05,2]
[347721941,1736080289478,-1582.22,9.863e-05,2]
[347721942,1736080289488,-1585.45,9.863e-05,2]
[347721943,1736080289497,-500.0,9.863e-05,2]
[347721944,1736080289505,-500.0,9.863e-05,2]
[347721945,1736080289515,-1155.62,9.863e-05,2]
[347721946,1736080289524,-500.0,9.863e-05,2]
[347721947,1736080289533,-500.0,9.863e-05,2]
[347721948,1736080289542,-1461.86,9.863e-05,2]
[347721949,1736080289552,-961.26,9.863e-05,2]
[347721950,1736080289561,-500.0,9.863e-05,2]
[347721951,1736080289571,-1799.53,9.863e-05,2]
[347721952,1736080289580,-500.0,9.863e-05,2]
[347721953,1736080289589,-1871.76,9.863e-05,2]
[347721954,1736080289598,-3231.73,9.863e-05,2]
[347721955,1736080289607,-2942.46,9.863e-05,2]
[347721956,1736080289616,-500.0,9.863e-05,2]
[347721957,1736080289626,-1405.92,9.863e-05,2]
[347721958,1736080289635,-1885.48,9.863e-05,2]
[347721959,1736080289644,-1469.95,9.863e-05,2]
[347721960,1736080289653,-500.0,9.863e-05,2]
[347721961,1736080289662,-500.0,9.863e-05,2]
[347721962,1736080289671,-166.470841,9.863e-05,2]
[347721963,1736080289680,-500.0,9.863e-05,2]
[347721964,1736080289689,-500.0,9.863e-05,2]
[347721965,1736080289700,-1575.04,9.863e-05,2]
[347721966,1736080289709,-840.02,9.863e-05,2]
[347721967,1736080289719,-547.41,9.863e-05,2]
[347721968,1736080289728,-279.785588,9.863e-05,2]
[347721969,1736080289738,-1377.53,9.863e-05,2]
[347721970,1736080289749,-500.0,9.863e-05,2]
[347721971,1736080289760,-500.0,9.863e-05,2]
[347721972,1736080289770,-1410.84,9.863e-05,2]
[347721973,1736080289779,-5404.76,9.863e-05,2]
[347721974,1736080289789,-4365.11,9.863e-05,2]
[347721975,1736080289798,-763.6,9.863e-05,2]
[347721976,1736080289808,-2101.99,9.863e-05,2]
[347721977,1736080289817,-933.04,9.863e-05,2]
[347721978,1736080289826,-3640.96,9.863e-05,2]
[347721979,1736080289835,-1904.35,9.863e-05,2]
[347721980,1736080289845,-500.0,9.863e-05,2]
[347721981,1736080289854,-7062.77,9.863e-05,2]
[347721982,1736080289863,-227.455484,9.863e-05,2]
[347721983,1736080289871,-500.0,9.863e-05,2]
[347721984,1736080289879,-701.42,9.863e-05,2]
[347721985,1736080289889,-5709.24,9.863e-05,2]
[347721986,1736080289898,-500.0,9.863e-05,2]
[347721987,1736080289907,-500.0,9.863e-05,2]
[347721988,1736080289916,-500.0,9.863e-05,2]
[347721989,1736080289926,-640.06,9.863e-05,2]
[347721990,1736080289935,-266.669325,9.863e-05,2]
[347721991,1736080289945,-1911.33,9.863e-05,2]
[347721992,1736080289954,-748.87,9.863e-05,2]
[347721993,1736080289964,-500.0,9.863e-05,2]
[347721994,1736080289972,-828.14,9.863e-05,2]
[347721995,1736080289980,-1150.44,9.863e-05,2]
[347721996,1736080289991,-1200.99,9.863e-05,2]
[347721997,1736080290000,-828.55,9.863e-05,2]
[347721998,1736080290009,-500.0,9.863e-05,2]
[347721999,1736080290018,-500.0,9.863e-05,2]
[347722000,1736080290027,-1799.4,9.863e-05,2]
[347722001,1736080290036,-714.07,9.863e-05,2]
[347722002,1736080290045,-1583.56,9.863e-05,2]
[347722003,1736080290054,-302.37876,9.863e-05,2]
[347722004,1736080290063,-196.822112,9.863e-05,2]
[347722005,1736080290073,-1018.3,9.863e-05,2]
[347722006,1736080290085,-500.0,9.863e-05,2]
[347722007,1736080290095,-1355.56,9.863e-05,2]
[347722008,1736080290104,-1020.12,9.863e-05,2]
[347722009,1736080290113,-509.36,9.863e-05,2]
[347722010,1736080290122,-1376.77,9.863e-05,2]
[347722011,1736080290134,-3441.71,9.863e-05,2]
[347722012,1736080290143,-740.97,9.863e-05,2]
[347722013,1736080290152,-4247.23,9.863e-05,2]
[347722014,1736080290162,-403.496734,9.863e-05,2]
[347722015,1736080290172,-1579.74,9.863e-05,2]
[347722016,1736080290181,-500.0,9.863e-05,2]
[347722017,1736080290190,-262.398612,9.863e-05,2]
[347722018,1736080290199,-6176.17,9.863e-05,2]
[347722019,1736080290209,-1339.61,9.863e-05,2]
[347722020,1736080290218,-500.0,9.863e-05,2]
[347722021,1736080290227,-5569.09,9.863e-05,2]
[347722022,1736080290236,-500.0,9.863e-05,2]
[347722023,1736080290249,-1345.73,9.863e-05,2]
[347722024,1736080290259,-500.0,9.863e-05,2]
[347722025,1736080290268,-500.0,9.863e-05,2]
[347722026,1736080290278,-500.0,9.863e-05,2]
[347722027,1736080290287,-2264.7,9.863e-05,2]
[347722028,1736080290297,-374.62,9.863e-05,2]
[347722029,1736080290306,-406.415372,9.863e-05,2]
[347722030,1736080290316,-4625.69,9.863e-05,2]
[347722031,1736080290326,-8692.91,9.863e-05,2]
[347722032,1736080290335,-500.0,9.863e-05,2]
[347722033,1736080290344,-5484.28,9.863e-05,2]
[347722034,1736080290353,-2464.9,9.863e-05,2]
[347722035,1736080290363,-1926.73,9.863e-05,2]
[347722036,1736080290372,-500.0,9.863e-05,2]
[347722037,1736080290381,-373.380789,9.863e-05,2]
[347722038,1736080290391,-500.0,9.863e-05,2]
[347722039,1736080290400,-961.41,9.863e-05,2]
[347722040,1736080290409,-3574.82366498,9.863e-05,2]
[347722041,1736080290422,-960.71633502,9.863e-05,2]
[347722042,1736080290431,-720.32,9.863e-05,2]
[347722043,1736080290441,-500.0,9.863e-05,2]
[347722044,1736080290450,-216.9,9.863e-05,2]
[347722045,1736080290459,-2106.21,9.863e-05,2]
[347722046,1736080290468,-363.996706,9.863e-05,2]
[347722047,1736080290477,-193.6631141,9.863e-05,2]
[347722048,1736080290494,-306.3368859,9.863e-05,2]
[347722049,1736080290504,-139.0821141,9.863e-05,2]
[347722050,1736080298225,168.22,6.754e-05,2]
[347722055,1736080394511,2000.0,0.00021999,120]
[347722058,1736080466314,500.0,0.0002,120]
[347722059,1736080466597,500.0,0.0002,120]
[347722060,1736080466876,500.0,0.0002,120]
[347722061,1736080467168,500.0,0.0002,120]
[347722062,1736080467409,310.36678863,0.0002,120]
[347722069,1736080929421,2043.51,0.00022,120]
[347722070,1736080996671,2000.0,0.00021999,120]
[347722173,1736081357623,500.0,7.105e-05,2]
[347722178,1736081383791,1741.87,7.101e-05,2]
[347722188,1736081431565,-606.38,7.128e-05,2]
[347722189,1736081431575,-1500.0,7.164e-05,2]
[347722190,1736081431585,-150.0,7.447e-05,2]
[347722191,1736081431594,-150.0,7.506e-05,2]
[347722192,1736081431604,-6972.93838304,7.565e-05,2]
[347722193,1736081431613,-150.0,7.565e-05,2]
[347722194,1736081431623,-150.0,7.624e-05,2]
[347722195,1736081431633,-150.0,7.683e-05,2]
[347722196,1736081431643,-150.0,7.742e-05,2]
[347722197,1736081431654,-300.0,7.8e-05,2]
[347722198,1736081431663,-150.0,7.801e-05,2]
[347722199,1736081431673,-150.0,7.86e-05,2]
[347722200,1736081431682,-250.0,7.873e-05,2]
[347722201,1736081431692,-2000.0,7.915e-05,2]
[347722202,1736081431701,-150.0,7.919e-05,2]
[347722203,1736081431711,-250.0,7.93e-05,2]
[347722204,1736081431721,-150.0,7.978e-05,2]
[347722205,1736081431730,-457.49723825,8.019e-05,2]
[347722206,1736081431776,-148.88276175,8.019e-05,2]
[347722207,1736081431785,-150.0,8.038e-05,2]
[347722208,1736081431795,-150.0,8.097e-05,2]
[347722209,1736081431804,-5000.0,8.119e-05,2]
[347722210,1736081431813,-150.0,8.137e-05,2]
[347722211,1736081431823,-150.0,8.156e-05,2]
[347722212,1736081431832,-194.7838428,8.177e-05,2]
[347722213,1736081431844,-315.56130515,8.177e-05,2]
[347722214,1736081431896,-1179.45,8.177e-05,2]
[347722215,1736081431907,-3147.93185205,8.177e-05,2]
[347722216,1736081431916,-179.744,8.177e-05,2]
[347722217,1736081431925,-26745.42692991,8.178e-05,2]
[347722218,1736081431937,-4157.02067509,8.178e-05,2]
[347722219,1736081431946,-714.63265258,8.2e-05,3]
[347722220,1736081431958,-2056.45734742,8.2e-05,3]
[347722221,1736081431967,-5167.29655837,8.2e-05,2]
[347722222,1736081431976,-150.0,8.215e-05,2]
[347722223,1736081431986,-39784.28107697,8.218e-05,2]
[347722224,1736081432006,-35793.59560077,8.218e-05,2]
[347722225,1736081432022,-2461.40056896,8.218e-05,2]
[347722226,1736081432057,-432.684,8.218e-05,2]
[347722227,1736081432068,-133271.20889768,8.218e-05,2]
[347722229,1736081432080,-38256.82985562,8.218e-05,2]
[347722230,1736081432090,-5167.29655833,8.218e-05,2]
[347722232,1736081432099,-227.739126,8.219e-05,2]
[347722234,1736081432109,-154.027533,8.219e-05,2]
[347722236,1736081432118,-166.470842,8.219e-05,2]
[347722238,1736081432127,-2273.71,8.219e-05,2]
[347722240,1736081432136,-2246.35,8.219e-05,2]
[347722242,1736081432146,-2657.41,8.219e-05,2]
[347722244,1736081432155,-3607.44879489,8.219e-05,2]
[347722248,1736081432167,-41.38120511,8.219e-05,2]
[347722251,1736081432177,-500.0,8.219e-05,2]
[347722254,1736081432186,-500.0,8.219e-05,2]
[347722256,1736081432195,-500.0,8.219e-05,2]
[347722258,1736081432204,-606.01,8.219e-05,2]
[347722259,1736081432214,-2971.36,8.219e-05,2]
[347722261,1736081432223,-500.0,8.219e-05,2]
[347722263,1736081432232,-500.0,8.219e-05,2]
[347722265,1736081432242,-500.0,8.219e-05,2]
[347722267,1736081432251,-500.0,8.219e-05,2]
[347722269,1736081432260,-500.0,8.219e-05,2]
[347722271,1736081432272,-500.0,8.219e-05,2]
[347722273,1736081432281,-500.0,8.219e-05,2]
[347722275,1736081432290,-748.1,8.219e-05,2]
[347722277,1736081432301,-500.0,8.219e-05,2]
[347722279,1736081432310,-500.0,8.219e-05,2]
[347722281,1736081432320,-500.0,8.219e-05,2]
[347722283,1736081432329,-500.0,8.219e-05,2]
[347722285,1736081432339,-500.0,8.219e-05,2]
[347722287,1736081432348,-4678.15,8.219e-05,2]
[347722289,1736081432358,-500.0,8.219e-05,2]
[347722291,1736081432368,-513.09,8.219e-05,2]
[347722293,1736081432377,-500.0,8.219e-05,2]
[347722295,1736081432386,-262.41502644,8.219e-05,2]
[347722297,1736081432395,-500.0,8.219e-05,2]
[347722299,1736081432405,-500.0,8.219e-05,2]
[347722301,1736081432415,-500.0,8.219e-05,2]
[347722303,1736081432425,-500.0,8.219e-05,2]
[347722305,1736081432434,-500.0,8.219e-05,2]
[347722307,1736081432444,-2541.46,8.219e-05,2]
[347722309,1736081432454,-500.0,8.219e-05,2]
[347722311,1736081432463,-500.0,8.219e-05,2]
[347722313,1736081432472,-500.0,8.219e-05,2]
[347722315,1736081432482,-500.0,8.219e-05,2]
[347722317,1736081432492,-500.0,8.219e-05,2]
[347722319,1736081432501,-150.0,8.219e-05,2]
[347722321,1736081432511,-500.0,8.219e-05,2]
[347722323,1736081432523,-500.0,8.219e-05,2]
[347722325,1736081432532,-500.0,8.219e-05,2]
[347722327,1736081432542,-512.17,8.219e-05,2]
[347722329,1736081432551,-500.0,8.219e-05,2]
[347722331,1736081432561,-500.0,8.219e-05,2]
[347722333,1736081432570,-500.0,8.219e-05,2]
[347722336,1736081432580,-732.98,8.219e-05,2]
[347722338,1736081432589,-500.0,8.219e-05,2]
[347722340,1736081432599,-3316.43,8.219e-05,2]
[347722342,1736081432608,-500.0,8.219e-05,2]
[347722343,1736081432617,-500.0,8.219e-05,2]
[347722345,1736081432627,-500.0,8.219e-05,2]
[347722347,1736081432638,-500.0,8.219e-05,2]
[347722349,1736081432650,-500.0,8.219e-05,2]
[347722352,1736081432659,-161.272254,8.219e-05,2]
[347722354,1736081432669,-500.0,8.219e-05,2]
[347722356,1736081432679,-500.0,8.219e-05,2]
[347722357,1736081432688,-500.0,8.219e-05,2]
[347722359,1736081432697,-500.0,8.219e-05,2]
[347722361,1736081432706,-500.0,8.219e-05,2]
[347722363,1736081432715,-500.0,8.219e-05,2]
[347722365,1736081432724,-500.0,8.219e-05,2]
[347722367,1736081432733,-500.0,8.219e-05,2]
[347722369,1736081432742,-500.0,8.219e-05,2]
[347722371,1736081432751,-500.0,8.219e-05,2]
[347722373,1736081432760,-500.0,8.219e-05,2]
[347722375,1736081432773,-500.0,8.219e-05,2]
[347722377,1736081432783,-643.41,8.219e-05,2]
[347722379,1736081432793,-500.0,8.219e-05,2]
[347722381,1736081432802,-500.0,8.219e-05,2]
[347722383,1736081432811,-159.29825149,8.219e-05,2]
[347722385,1736081432821,-500.0,8.219e-05,2]
[347722387,1736081432830,-157.243885,8.219e-05,2]
[347722389,1736081432839,-500.0,8.219e-05,2]
[347722391,1736081432850,-500.0,8.219e-05,2]
[347722393,1736081432859,-500.0,8.219e-05,2]
[347722395,1736081432868,-500.0,8.219e-05,2]
[347722397,1736081432877,-500.0,8.219e-05,2]
[347722399,1736081432886,-510.39,8.219e-05,2]
[347722401,1736081432896,-699.06,8.219e-05,2]
[347722403,1736081432905,-500.0,8.219e-05,2]
[347722405,1736081432915,-500.0,8.219e-05,2]
[347722407,1736081432924,-500.0,8.219e-05,2]
[347722409,1736081432934,-500.0,8.219e-05,2]
[347722411,1736081432943,-500.0,8.219e-05,2]
[347722413,1736081432952,-500.0,8.219e-05,2]
[347722415,1736081432961,-500.0,8.219e-05,2]
[347722417,1736081432970,-500.0,8.219e-05,2]
[347722419,1736081432979,-500.0,8.219e-05,2]
[347722421,1736081432988,-500.0,8.219e-05,2]
[347722423,1736081432998,-769.52,8.219e-05,2]
[347722425,1736081433007,-708.82,8.219e-05,2]
[347722427,1736081433022,-500.0,8.219e-05,2]
[347722429,1736081433032,-500.0,8.219e-05,2]
[347722431,1736081433041,-500.0,8.219e-05,2]
[347722433,1736081433051,-500.0,8.219e-05,2]
[347722435,1736081433060,-500.0,8.219e-05,2]
[347722437,1736081433070,-546.21,8.219e-05,2]
[347722439,1736081433080,-500.0,8.219e-05,2]
[347722441,1736081433090,-500.0,8.219e-05,2]
[347722443,1736081433100,-500.0,8.219e-05,2]
[347722445,1736081433109,-500.0,8.219e-05,2]
[347722447,1736081433119,-500.0,8.219e-05,2]
[347722449,1736081433128,-500.0,8.219e-05,2]
[347722451,1736081433138,-500.0,8.219e-05,2]
[347722453,1736081433147,-507.73224026,8.219e-05,2]
[347722458,1736081433188,-144.02775974,8.219e-05,2]
[347722460,1736081433198,-500.0,8.219e-05,2]
[347722462,1736081433207,-305.80359026,8.219e-05,2]
[347722928,1736081437939,-194.19640974,8.219e-05,2]
[347722930,1736081437948,-161.965734,8.219e-05,2]
[347722932,1736081437958,-500.0,8.219e-05,2]
[347722934,1736081437967,-1563.98039915,8.219e-05,2]
[347722937,1736081437985,-2786.45960085,8.219e-05,2]
[347722939,1736081437994,-500.0,8.219e-05,2]
[347722942,1736081438003,-500.0,8.219e-05,2]
[347722945,1736081438013,-500.0,8.219e-05,2]
[347722948,1736081438023,-500.0,8.219e-05,2]
[347722951,1736081438033,-302.59119293,8.219e-05,2]
[347722954,1736081438042,-458.68937536,8.219e-05,2]
[347722956,1736081438054,-41.31062464,8.219e-05,2]
[347722958,1736081438064,-575.86,8.219e-05,2]
[347722960,1736081438073,-500.0,8.219e-05,2]
[347722962,1736081438082,-500.0,8.219e-05,2]
[347722964,1736081438091,-500.0,8.219e-05,2]
[347722966,1736081438101,-500.0,8.219e-05,2]
[347722968,1736081438110,-680.91,8.219e-05,2]
[347722970,1736081438119,-500.0,8.219e-05,2]
[347722972,1736081438128,-500.0,8.219e-05,2]
[347722974,1736081438138,-500.0,8.219e-05,2]
[347722976,1736081438147,-675.05,8.219e-05,2]
[347722978,1736081438155,-500.0,8.219e-05,2]
[347722981,1736081438165,-635.69398808,8.219e-05,2]
[347722983,1736081438174,-612.9,8.219e-05,2]
[347722984,1736081438185,-162.357759,8.219e-05,2]
[347722987,1736081438194,-500.0,8.219e-05,2]
[347722989,1736081438204,-500.0,8.219e-05,2]
[347722990,1736081438213,-2377.25,8.219e-05,2]
[347722993,1736081438222,-500.0,8.219e-05,2]
[347722994,1736081438231,-500.0,8.219e-05,2]
[347722996,1736081438240,-500.0,8.219e-05,2]
[347722999,1736081438250,-500.0,8.219e-05,2]
[347723001,1736081438259,-500.0,8.219e-05,2]
[347723002,1736081438269,-500.0,8.219e-05,2]
[347723004,1736081438278,-500.0,8.219e-05,2]
[347723006,1736081438287,-500.0,8.219e-05,2]
[347723008,1736081438296,-500.0,8.219e-05,2]
[347723010,1736081438306,-500.0,8.219e-05,2]
[347723013,1736081438316,-500.0,8.219e-05,2]
[347723015,1736081438325,-500.0,8.219e-05,2]
[347723017,1736081438335,-500.0,8.219e-05,2]
[347723018,1736081438344,-500.0,8.219e-05,2]
[347723020,1736081438353,-1517.67,8.219e-05,2]
[347723022,1736081438363,-500.0,8.219e-05,2]
[347723024,1736081438372,-500.0,8.219e-05,2]
[347723026,1736081438382,-500.0,8.219e-05,2]
[347723028,1736081438392,-655.68,8.219e-05,2]
[347723030,1736081438401,-500.0,8.219e-05,2]
[347723032,1736081438411,-500.0,8.219e-05,2]
[347723034,1736081438420,-688.9,8.219e-05,2]
[347723036,1736081438429,-500.0,8.219e-05,2]
[347723038,1736081438438,-500.0,8.219e-05,2]
[347723040,1736081438447,-500.0,8.219e-05,2]
[347723041,1736081438456,-500.0,8.219e-05,2]
[347723043,1736081438465,-500.0,8.219e-05,2]
[347723045,1736081438475,-500.0,8.219e-05,2]
[347723046,1736081438484,-1005.74,8.219e-05,2]
[347723048,1736081438493,-500.0,8.219e-05,2]
[347723050,1736081438503,-500.0,8.219e-05,2]
[347723052,1736081438512,-500.0,8.219e-05,2]
[347723054,1736081438523,-533.45236416,8.219e-05,2]
[347723056,1736081438533,-1251.15,8.219e-05,2]
[347723058,1736081438543,-500.0,8.219e-05,2]
[347723059,1736081438552,-500.0,8.219e-05,2]
[347723061,1736081438561,-500.0,8.219e-05,2]
[347723063,1736081438570,-941.08,8.219e-05,2]
[347723065,1736081438580,-500.0,8.219e-05,2]
[347723067,1736081438589,-500.0,8.219e-05,2]
[347723068,1736081438598,-500.0,8.219e-05,2]
[347723070,1736081438607,-500.0,8.219e-05,2]
[347723072,1736081438616,-500.0,8.219e-05,2]
[347723074,1736081438625,-532.27,8.219e-05,2]
[347723075,1736081438634,-635.61,8.219e-05,2]
[347723077,1736081438644,-500.0,8.219e-05,2]
[347723079,1736081438653,-765.67,8.219e-05,2]
[347723081,1736081438662,-534.9,8.219e-05,2]
[347723083,1736081438671,-500.0,8.219e-05,2]
[347723084,1736081438680,-712.99,8.219e-05,2]
[347723086,1736081438689,-500.0,8.219e-05,2]
[347723088,1736081438699,-500.0,8.219e-05,2]
[347723090,1736081438708,-654.56,8.219e-05,2]
[347723092,1736081438717,-500.0,8.219e-05,2]
[347723094,1736081438727,-1619.43,8.219e-05,2]
[347723096,1736081438738,-759.31,8.219e-05,2]
[347723097,1736081438747,-500.0,8.219e-05,2]
[347723099,1736081438757,-500.0,8.219e-05,2]
[347723101,1736081438766,-1127.00284511,8.219e-05,2]
[347723104,1736081438790,-396.34001336,8.219e-05,2]
[347723106,1736081438801,-203.33714153,8.219e-05,2]
[347723108,1736081438811,-224.22909757,8.219e-05,2]
[347723110,1736081438822,-867.85090243,8.219e-05,2]
[347723112,1736081438831,-500.0,8.219e-05,2]
[347723113,1736081438839,-895.79,8.219e-05,2]
[347723115,1736081438850,-500.0,8.219e-05,2]
[347723117,1736081438860,-500.0,8.219e-05,2]
[347723119,1736081438870,-500.0,8.219e-05,2]
[347723121,1736081438879,-500.0,8.219e-05,2]
[347723123,1736081438888,-893.04,8.219e-05,2]
[347723124,1736081438898,-654.75,8.219e-05,2]
[347723126,1736081438907,-167.10948141,8.219e-05,2]
[347723128,1736081438916,-500.0,8.219e-05,2]